Cogmind - Beta 15 @@@ ROGUE MODE // 2025.05.09 @ 19:12:37 Player: Jay Result: Destroyed by 1B-YGC(R) with Subdweller Laser Performance ------------- Evolutions (0) 0 Regions Visited (3) 600 Robots Destroyed (13) 65 Value Destroyed (268) 268 Prototype IDs (0) 0 Alien Tech Used (0) 0 Bonus (0) 0 TOTAL SCORE: 933 Bonus ------- None Cogmind --------- Core Integrity 0/250 Matter 291/300 Energy 275/275 System Corruption 0% Temperature Cool (6) Movement Walking (120) Location -10/Subcaves Parts ------- > --- POWER (1) -------- Light Ion Engine > --- PROPULSION (2) --- Aluminum Leg Aluminum Leg > --- UTILITY (2) ------ Small Storage Unit Medium Battery > --- WEAPON (2) ------- Assault Rifle > --- INVENTORY (8) ---- Ion Engine Light Ion Engine Beam Cannon Beam Cannon Assault Rifle Light Cannon Light Cannon Light Cannon Peak State ------------ > --- POWER ------------ Ion Engine > --- PROPULSION ------- Aluminum Leg Aluminum Leg > --- UTILITY ---------- Small Storage Unit Medium Battery > --- WEAPON ----------- Assault Rifle Light Assault Rifle > --- INVENTORY -------- Ion Engine Light Ion Engine Beam Cannon Beam Cannon Assault Rifle Light Cannon Light Cannon Light Cannon [Rating: 7] Favorites ----------- Power Ion Engine Engine Ion Engine Propulsion Aluminum Leg Leg Aluminum Leg Utility Small Storage Unit Storage Small Storage Unit Weapon Assault Rifle Ballistic Gun Assault Rifle Build | -11 -10 -10 -10 ------- Run | Yrd Mat Min Sub Slots Evolved . | . . . . Power . | . . . . Propulsion . | . . . . Utility . | . . . . Weapon . | . . . . Parts Attached 10 | 6 4 . . Power 3 | 1 2 . . Engine 3 | 1 2 . . Core . | . . . . Reactor . | . . . . Propulsion 3 | 2 1 . . Treads . | . . . . Leg 3 | 2 1 . . Wheel . | . . . . Hover . | . . . . Flight . | . . . . Utility 2 | 1 1 . . Device . | . . . . Storage 2 | 1 1 . . Processor . | . . . . Hackware . | . . . . Protection . | . . . . Artifact . | . . . . Weapon 2 | 2 . . . Energy Gun . | . . . . Energy Cannon . | . . . . Ballistic Gun 2 | 2 . . . Ballistic Cannon . | . . . . Launcher . | . . . . Special Weapon . | . . . . Impact Weapon . | . . . . Slashing Weapon . | . . . . Piercing Weapon . | . . . . Special Melee Weapon . | . . . . Unidentified Prototypes . | . . . . Parts Lost 1 | . . . 1 Power . | . . . . Propulsion . | . . . . Utility . | . . . . Weapon 1 | . . . 1 Highest Loss Streak 1 | . . . 1 To Critical Strikes . | . . . . Average Backups 6 | 2 6 8 8 Power 1 | . 1 2 2 Propulsion . | . . . . Utility . | . . . . Weapon 5 | 1 4 6 6 Tool/Special . | . . . . Unused Backups 8 | . . . 8 Power 2 | . . . 2 Propulsion . | . . . . Utility . | . . . . Weapon 6 | . . . 6 Tool/Special . | . . . . Average Slot Usage (%) 93 | . 89 100 100 Engine 14 | . 14 14 14 Leg 28 | . 28 28 28 Storage 22 | . 18 28 28 Ballistic Gun 28 | . 28 28 28 Peak Build Rating 7 | 6 7 7 7 Average Rating 6 | 4 6 7 6 On Entrance 5 | . 6 7 7 Naked Turns . | . . . . Heaviest Build 15 | 13 15 13 13 Greatest Support 20 | 20 20 20 20 Greatest Overweight (x) . | . . . . Average Overweight (x) . | . . . . Largest Inventory Capacity 8 | 8 8 8 8 Average Capacity 7 | 7 8 8 8 Most Carried 8 | 5 8 8 8 Average Carried 6 | 2 6 8 8 Final Capacity 8 | 8 8 8 8 Final Carried 8 | 2 8 8 8 Class Distribution -------------------- 100% | Mutant Dominant Class ---------------- Mutant | -10/Materials Mutant | -10/Mines Mutant | -10/Subcaves Resources | -11 -10 -10 -10 ----------- Run | Yrd Mat Min Sub Matter Collected 475 | 160 311 . 4 Remotely . | . . . . Salvage Created 405 | . 334 . 71 Parts 23 | . 17 . 6 Haulers Intercepted . | . . . . Recyclers Shooed 1 | . 1 . . Parts Field Recycled . | . . . . Retrieved Matter . | . . . . Parts Self-Destructed 1 | . . . 1 Prevented . | . . . . Kills | -11 -10 -10 -10 ------- Run | Yrd Mat Min Sub Combat Hostiles Destroyed 9 | . 7 . 2 Guns 9 | . 7 . 2 Classes Destroyed 7 | . 6 . 1 Worker 1 | . 1 . . Recycler 1 | . 1 . . Operator 1 | . 1 . . Watcher 1 | . 1 . . Swarmer 4 | . 3 . 1 Grunt 4 | . 4 . . Subdweller 1 | . . . 1 Best Kill Streak 3 | . 3 . 1 Combat Bots Only 2 | . 2 . 1 Max Kills in Single Turn 1 | . 1 . 1 Gunslinging . | . . . . Exploded . | . . . . Melee . | . . . . Uniques/NPCs Destroyed . | . . . . Combat | -11 -10 -10 -10 -------- Run | Yrd Mat Min Sub Hostile Shots Fired 78 | . 71 . 7 Missed 25 | . 24 . 1 Hits 53 | . 47 . 6 Projectile 53 | . 47 . 6 Damage Taken 673 | . 542 . 131 Core 255 | . 191 . 64 Absorbed by Shields . | . . . . Core Remaining (%) 100 | 100 . . . Volleys Fired 46 | . 41 . 5 Largest 2 | . 2 . 2 Hottest 40 | . 40 . 40 Shots Fired 89 | . 82 . 7 Gun 89 | . 82 . 7 Cannon . | . . . . Launcher . | . . . . Special . | . . . . Kinetic 89 | . 82 . 7 Thermal . | . . . . Explosive . | . . . . Electromagnetic . | . . . . Robot Hit Streak 13 | . 13 . 6 Robot Miss Streak 6 | . 6 . 1 Penetration Max . | . . . . Secondary Targets 2 | . 2 . . Max Gunslinging Chain 1 | . 1 . . Shots Hit Robots 53 | . 47 . 6 Core Hits 23 | . 20 . 3 Critical Kills 1 | . 1 . . Critical Parts Destroyed 1 | . 1 . . Critical Strikes 2 | . 2 . . Destroy 2 | . 2 . . Melee Attacks . | . . . . Impact . | . . . . Slashing . | . . . . Piercing . | . . . . Sneak Attacks . | . . . . Combat Hostiles . | . . . . Follow-up Attacks . | . . . . Damage Inflicted 660 | . 592 . 68 Guns 651 | . 583 . 68 Cannons . | . . . . Explosions . | . . . . Melee . | . . . . Ramming 9 | . 9 . . Kinetic 651 | . 583 . 68 Thermal . | . . . . Explosive . | . . . . Electromagnetic . | . . . . Impact . | . . . . Slashing . | . . . . Piercing . | . . . . Highest Corruption . | . . . . Average Corruption . | . . . . Corruption Purged . | . . . . Corruption Blocked . | . . . . Overload Shots . | . . . . Overflow Damage . | . . . . Projectiles . | . . . . Explosions . | . . . . Melee . | . . . . Knockbacks . | . . . . Impact . | . . . . Kinetic . | . . . . Secondary . | . . . . Self-Inflicted Damage . | . . . . Shots . | . . . . Rammed . | . . . . Targets Rammed 3 | . 3 . . Kicked 3 | . 3 . . Crushed . | . . . . Highest Temperature 19 | . 19 . . Average Temperature 9 | . 9 . . Received Heat Transfer 294 | . 258 . 36 Siege Activations . | . . . . Martial Activations . | . . . . Shielding Activations . | . . . . Robots Disrupted . | . . . . Combat Hostiles . | . . . . Robots Corrupted . | . . . . Combat Hostiles . | . . . . Parts Fried . | . . . . Impact Corruptions . | . . . . Robots Melted . | . . . . Combat Hostiles . | . . . . Parts Melted . | . . . . Heat Transferred . | . . . . Parts Sabotaged . | . . . . Parts Stolen . | . . . . Parts Stripped . | . . . . Power Chain Reactions . | . . . . Alert | -11 -10 -10 -10 ------- Run | Yrd Mat Min Sub Maximum Alert Level . | . . . . Low Security (%) 100 | 100 100 100 . Level 1 . | . . . . Level 2 . | . . . . Level 3 . | . . . . Level 4 . | . . . . Level 5 . | . . . . High Security . | . . . . Max Security . | . . . . Peak Influence 66 | . 66 21 . Initial 21 | . . 21 . Average 17 | . 21 7 . Influence Increases 234 | . 214 . 20 Destroy 0b10 Robot/C 160 | . 140 . 20 Destroy 0b10 Robot/NC 20 | . 20 . . Destroy Leader 22 | . 22 . . Successful Hack 17 | . 17 . . Lose Combat Pursuer 15 | . 15 . . Influence Decreases 234 | . 159 55 20 Entered New Map 34 | . . 34 . Time Decay 200 | . 159 21 20 Squads Dispatched 1 | . 1 . . Investigation . | . . . . Extermination . | . . . . Reinforcement 1 | . 1 . . Assault . | . . . . Garrison . | . . . . Intercept . | . . . . Searches Triggered . | . . . . Construction Impeded . | . . . . Haulers Reinforced . | . . . . Active Scanning Responses . | . . . . Cargo Convoy Interrupts . | . . . . Stealth | -11 -10 -10 -10 --------- Run | Yrd Mat Min Sub Distress Signals 3 | . 3 . . Communications Jammed . | . . . . Distress Signals . | . . . . Times Spotted 13 | . 10 . 3 Peak Tracking Total 4 | . 4 . 2 Tactical Retreats 1 | . 1 . . Traps | -11 -10 -10 -10 ------- Run | Yrd Mat Min Sub Traps Triggered . | . . . . Indirectly . | . . . . Trap Hack Attempts . | . . . . Triggered . | . . . . Disarmed . | . . . . Reprogrammed . | . . . . Reused . | . . . . Traps Extracted . | . . . . Installed . | . . . . Triggered . | . . . . Machines | -11 -10 -10 -10 ---------- Run | Yrd Mat Min Sub Machines Disabled . | . . . . Max in Single Turn . | . . . . Machines Repaired . | . . . . Machines Dismantled . | . . . . Machines Sabotaged . | . . . . Overloaded Fab Kills . | . . . . Hacking | -11 -10 -10 -10 --------- Run | Yrd Mat Min Sub Machines Accessed 4 | . 4 . . Terminals 3 | . 3 . . Fabricators . | . . . . Repair Stations . | . . . . Recycling Units 1 | . 1 . . Scanalyzers . | . . . . Garrison Access . | . . . . Total Hacks 17 | . 17 . . Successful 10 | . 10 . . Failed 7 | . 7 . . Catastrophic . | . . . . Database Lockouts . | . . . . Manual . | . . . . Terminals 16 | . 16 . . Fabricators . | . . . . Repair Stations . | . . . . Recycling Units 1 | . 1 . . Scanalyzers . | . . . . Garrison Access . | . . . . Terminal Hacks 10 | . 10 . . Record 5 | . 5 . . Repair Station Index 1 | . 1 . . Alert Level 2 | . 2 . . Maintenance Status 1 | . 1 . . Security Status 1 | . 1 . . Fabricator Hacks . | . . . . Repair Station Hacks . | . . . . Recycling Unit Hacks . | . . . . Scanalyzer . | . . . . Garrison Access Hacks . | . . . . Unauthorized Hacks . | . . . . Terminals . | . . . . Fabricators . | . . . . Repair Stations . | . . . . Recycling Units . | . . . . Scanalyzers . | . . . . Garrison Access . | . . . . Data Cores Recovered . | . . . . Used . | . . . . Hacking Detections 3 | . 3 . . Full Trace Events 1 | . 1 . . Feedback Events . | . . . . Feedback Blocked . | . . . . Robot Schematics Acquired . | . . . . Robots Built . | . . . . Authchips . | . . . . Time . | . . . . Total Robot Build Rating . | . . . . Part Schematics Acquired . | . . . . Parts Built . | . . . . Authchips . | . . . . Time . | . . . . Total Part Build Rating . | . . . . Parts Repaired . | . . . . Time . | . . . . Parts Recycled . | . . . . Recycled Matter . | . . . . Retrieved Matter . | . . . . Retrieved Components . | . . . . Parts Scanalyzed . | . . . . Part Schematics Acquired . | . . . . Parts Damaged . | . . . . Bothacking | -11 -10 -10 -10 ------------ Run | Yrd Mat Min Sub Used RIF Installer . | . . . . Robots Hacked . | . . . . Non-combat . | . . . . Combat . | . . . . Robot Hacks Applied . | . . . . Relay Couplers Released . | . . . . Fabnet Peak Effective % . | . . . . Robots Rewired . | . . . . Allies Hacked . | . . . . Hacks Repelled . | . . . . Allies | -11 -10 -10 -10 -------- Run | Yrd Mat Min Sub Total Allies . | . . . . Largest Group . | . . . . Highest-Rated Group . | . . . . Highest-Rated Ally . | . . . . Total Orders . | . . . . Ally Attacks . | . . . . Total Damage . | . . . . Kills . | . . . . Allies Corrupted . | . . . . Allies Melted . | . . . . Intel | -11 -10 -10 -10 ------- Run | Yrd Mat Min Sub Active Infowar (turns) . | . . . . Robot Analysis Total . | . . . . Derelict Logs Recovered 1 | . . . 1 Drone Launches . | . . . . Drone Recoveries . | . . . . Exploration | -11 -10 -10 -10 ------------- Run | Yrd Mat Min Sub Turns Passed 997 | 59 557 80 301 Spaces Moved 699 | 49 346 67 237 Core 17 | 17 . . . Treads . | . . . . Legs 682 | 32 346 67 237 Wheels . | . . . . Hover . | . . . . Flight . | . . . . Fastest Speed 50 | 50 120 120 120 Average Speed 118 | 95 120 120 120 Slowest Speed 120 | 120 120 120 120 Overloaded Moves . | . . . . Propulsion Burnouts . | . . . . Robots Hopped . | . . . . Potential Cave-ins . | . . . . Cave-ins Triggered . | . . . . Exploration Rate (%) 15 | 4 38 9 11 Regions Visited 3 Branch Regions 2 Pre-discovered Areas . | . . . . Known Exits Taken . | . . . . Unknown Exits Taken 3 | 1 1 1 . Scrap Searched . | . . . . Spaces Dug . | . . . . Terrain Destroyed . | . . . . Melee . | . . . . Projectile . | . . . . AOE . | . . . . Terrain Rammed . | . . . . Walls Destroyed . | . . . . Machines Disabled . | . . . . Actions | -11 -10 -10 -10 --------- Run | Yrd Mat Min Sub Total 786 | 59 413 66 248 Wait 13 | . 7 . 6 Move 696 | 48 345 66 237 Hop . | . . . . Pick Up 11 | 5 6 . . Fast Attach 9 | 3 6 . . Attach 3 | 3 . . . Detach . | . . . . Swap . | . . . . Drop 5 | . 5 . . Fire 46 | . 41 . 5 Melee . | . . . . Ram . | . . . . Kick 3 | . 3 . . Crush . | . . . . Escape Stasis . | . . . . Rewire . | . . . . Trap . | . . . . Miscellaneous . | . . . . Route ------- -11/Scrapyard -10/Materials -10/Mines -10/Subcaves History --------- Turn | Location | Event 11 | -11/Scrapyard | Discovered new exit (range 15) 60 | -11/Scrapyard | Entered Materials 308 | -10/Materials | Build established: Mutant 513 | -10/Materials | Core integrity fell below 50% 552 | -10/Materials | Discovered new exit (range 11) 617 | -10/Materials | Entered Mines 634 | -10/Mines | Met a Derelict bent on vengeance 689 | -10/Mines | Discovered new exit (range 4) 697 | -10/Mines | Entered Subcaves 714 | -10/Subcaves | Learned 4 Materials zone layouts 745 | -10/Subcaves | A swath of the cavern ceiling suddenly collapsed 995 | -10/Subcaves | Core integrity fell below 20% 998 | -10/Subcaves | Destroyed by 1B-YGC(R) with Subdweller Laser Last Messages --------------- GOAL=ESCAPE Something is scanning the area. 00618_ T-07 Excavator is excavating. 00643_ K-01 Serf cleans the Seismic Survey Station. 00645_ K-01 Serf collects debris. 00685_ T-07 Excavator is excavating. 00689_ EXIT=FOUND 00696_ T-07 Excavator is excavating. LOCATION=UNKNOWN AMBIENT_HEAT=-10 GOAL=ESCAPE 00714_ Acquired derelict log, extracted data. Data stored: Materials zone layouts (x4). 00745_ 13 Matter crushed. A swath of the cavern ceiling suddenly collapses. 00761_ S-10 Pest destroyed. 00769_ Acquired 4 matter. 00775_ Lgt. Ion Engine fries itself beyond repair. 00992_ Lgt. Assault Rifle destroyed. 00997_ 61-KCS(R) destroyed. Map ----- +----------------------------------------------------+ | ??????????????????????????????# #???????????? | | ??????????????????????????????# #???????????? | | ?????????????????????????????## #???????????? | | ????????????????????????????## ##???????????? | | ????????????????????????????# ####????????????? | | ????????????????????????????# ##???????????????? | | ???????????????????????????## #?###????????????? | | ???????????????????????????# ### #????????????? | | ??????????????????????????## #????????????? | | ???????????????????????#### #????????????? | | ??????????????????????## #????????????? | | ??????????? ??????????# ## ##???????????? | | ??????????? ## ?????## ### #???????????? | | ??????????? ?????### ## #???????????? | | ??????????? " ####### ##???????????? | | ??????????" "" ### ## ##????????????? | | ??????????" "" # ######?????????????? | | ?????????????# "" ### # ##??????????????????? | | ?????????????# ????# ###??####???????????? | | ?????????????## ??????# #?## #???????????? | | ??????????????????????# ### #???????????? | | ??????????????????????## ## #???????????? | | ???????????????????????## ## #???????????? | | ????????????????????????##&[ ### #???????????? | | ????????????????????????##%R ## #???????????? | | ????????????????????????#@&& ##???????????? | | ????????????????????????# #????????????? | | ????????????????????????# ## ##???????????? | | ????????????????????????## ##### #???????????? | | ?????????????????????????# #???## #???????????? | | ????????????????????????## ###??####???????????? | | ????????????????????????# #?????????????????? | | ????????????????????????# #?????????????????? | | ????????????????????????##### #?????????????????? | | ?????????????????????????????###?????????????????? | | ?????????????????????????????????????????????????? | | ?????????????????????????????????????????????????? | | ?????????????????????????????????????????????????? | | ?????????????????????????????????????????????????? | | ?????????????????????????????????????????????????? | | ?????????????????????????????????????????????????? | | ?????????????????????????????????????????????????? | | ?????????????????????????????????????????????????? | | ?????????????????????????????????????????????????? | | ?????????????????????????????????????????????????? | | ?????????????????????????????????????????????????? | | ?????????????????????????????????????????????????? | | ?????????????????????????????????????????????????? | | ?????????????????????????????????????????????????? | | ?????????????????????????????????????????????????? | +----------------------------------------------------+ Best States ------------- Heat Dissipation 25 Energy Generation 10 Energy Capacity 400 Matter Stores 300 Matter Capacity 300 Sight Range 16 Terrain Scan Density 10 Evasion (%) 55 Item Schematics ----------------- None Robot Schematics ------------------ None Fabricated ------------ Nothing Repaired ---------- Nothing Alien Tech Used ----------------- None Achievements -------------- None Challenges ------------ None Game ------ Seed UltimateFlakParser Manual? 0 Play Time 00:11:35 Cumulative 48.9 hours Start 2025.05.09 @ 18:50:20 End 2025.05.09 @ 19:12:37 Sessions 1 Manual Loads 0 Difficulty Rogue Special Mode None Game No. 88 Rogue 76 Adventurer 12 Explorer 0 Win Type - Total 0 Types 0/0/0/0/0/0/0/0/0/0 Lore% 10 Gallery% 23 Achievement% 19 Wizard Run 0 Options --------- Layout 0 ASCII 0 Keyboard 0 Movement Mouse Keybinds 0 Fullscreen 2 Font 18/SmallcapsGlow Map View 38x25 Zoom Use 99% Tactical HUD 1 Map Filters NONE Filters NONE Steam 1 RUN: 94e04211-17ce-41b1-93d4-32fc44e05cda